fUST/lending_fUST_20241023
["ID","MTS","AMOUNT","RATE_DAILY","PERIOD"]
[340661573,1729614479099,-314.051982,0.00014,2]
[340661574,1729614479127,-314.051982,0.00014,2]
[340661575,1729614479151,-151.0,0.00014,2]
[340661576,1729614479175,-151.0,0.00014,2]
[340661577,1729614479200,-300.386069,0.00014,2]
[340661578,1729614479224,-300.386069,0.00014,2]
[340661579,1729614479249,-170.582998,0.00014,2]
[340661580,1729614479273,-379.084945,0.00014,2]
[340661581,1729614479296,-151.0,0.00014,2]
[340661582,1729614479323,-170.582998,0.00014,2]
[340661583,1729614479347,-379.084945,0.00014,2]
[340661584,1729614479374,-151.0,0.00014,2]
[340661585,1729614479396,-151.0,0.00014,2]
[340661586,1729614479419,-151.0,0.00014,2]
[340661587,1729614479442,-162.462766,0.00014,2]
[340661588,1729614479467,-162.462766,0.00014,2]
[340661589,1729614479491,-7926.97112828,0.00014,2]
[340661590,1729614479515,-150.112233,0.000141,2]
[340661591,1729614479540,-150.112233,0.000141,2]
[340661592,1729614479563,-150.112233,0.000141,2]
[340661593,1729614479587,-266.79196458,0.00014114,2]
[340661594,1729614479611,-190.0,0.00014183,2]
[340661595,1729614479639,-150.112233,0.000142,2]
[340661596,1729614479663,-251.48219743,0.00014247,2]
[340661597,1729614479686,-538.75045776,0.00014247,2]
[340661598,1729614479710,-416.38628456,0.00014247,2]
[340661599,1729614479733,-1000.0,0.00014247,2]
[340661600,1729614479757,-1000.0,0.00014247,2]
[340661601,1729614479785,-1000.0,0.00014247,2]
[340661602,1729614479808,-900.77784517,0.00014247,2]
[340661603,1729614479832,-1000.0,0.00014247,2]
[340661604,1729614479856,-523.71796289,0.00014247,2]
[340661605,1729614479884,-150.112233,0.000143,2]
[340661606,1729614479907,-151.0,0.00014337,2]
[340661607,1729614479930,-151.0,0.00014337,2]
[340661608,1729614479953,-152.094656,0.00014337,2]
[340661609,1729614479977,-276.223881,0.00014337,2]
[340661610,1729614480000,-276.223881,0.00014337,2]
[340661611,1729614480025,-276.223881,0.00014337,2]
[340661612,1729614480049,-276.223881,0.00014337,2]
[340661613,1729614480073,-558.263534,0.00014337,2]
[340661614,1729614480097,-558.263534,0.00014337,2]
[340661615,1729614480123,-558.263534,0.00014337,2]
[340661616,1729614480147,-558.263528,0.00014337,2]
[340661617,1729614480171,-260.941763,0.00014337,2]
[340661618,1729614480194,-260.941763,0.00014337,2]
[340661619,1729614480218,-260.941763,0.00014337,2]
[340661620,1729614480242,-260.941757,0.00014337,2]
[340661621,1729614480266,-218.068172,0.00014337,2]
[340661622,1729614480289,-218.068172,0.00014337,2]
[340661623,1729614480315,-218.068172,0.00014337,2]
[340661624,1729614480340,-218.068169,0.00014337,2]
[340661625,1729614480365,-151.0,0.00014337,2]
[340661626,1729614480561,-151.0,0.00014337,2]
[340661627,1729614480586,-978.668148,0.00014337,2]
[340661628,1729614480613,-978.668148,0.00014337,2]
[340661629,1729614480642,-978.668148,0.00014337,2]
[340661630,1729614480667,-401.262193,0.00014337,2]
[340661631,1729614480691,-401.262193,0.00014337,2]
[340661632,1729614480715,-978.66814,0.00014337,2]
[340661633,1729614480739,-401.262193,0.00014337,2]
[340661634,1729614480763,-401.262189,0.00014337,2]
[340661635,1729614480791,-151.0,0.00014337,2]
[340661636,1729614480815,-314.051982,0.00014337,2]
[340661637,1729614480838,-314.051982,0.00014337,2]
[340661638,1729614480863,-151.0,0.00014337,2]
[340661639,1729614480888,-300.386069,0.00014337,2]
[340661640,1729614480913,-300.386069,0.00014337,2]
[340661641,1729614480936,-170.582998,0.00014337,2]
[340661642,1729614480960,-151.0,0.00014337,2]
[340661643,1729614480983,-170.582998,0.00014337,2]
[340661644,1729614481006,-151.0,0.00014337,2]
[340661645,1729614481029,-151.0,0.00014337,2]
[340661646,1729614481052,-194.124238,0.00014337,2]
[340661647,1729614481076,-162.462766,0.00014337,2]
[340661648,1729614481099,-162.462766,0.00014337,2]
[340661649,1729614481125,-26457.04329316,0.00014337,2]
[340661667,1729614579395,-300.0,0.00013399,2]
[340661668,1729614579422,-300.0,0.00013399,2]
[340661669,1729614579448,-17557.91794084,0.000134,2]
[340661670,1729614579473,-708.832963,0.00013688,2]
[340661671,1729614579498,-708.832963,0.00013688,2]
[340661672,1729614579524,-708.832963,0.00013689,2]
[340661673,1729614579550,-708.832963,0.00013689,2]
[340661674,1729614579576,-708.832963,0.00013698,2]
[340661675,1729614579602,-708.832963,0.00013698,2]
[340661676,1729614579629,-708.832963,0.00013698,2]
[340661677,1729614579656,-708.832963,0.00013698,2]
[340661678,1729614579680,-708.832963,0.00013698,2]
[340661679,1729614579704,-708.832963,0.00013698,2]
[340661680,1729614579728,-708.832963,0.00013698,2]
[340661681,1729614579753,-708.832963,0.00013698,2]
[340661682,1729614579777,-708.832963,0.00013699,2]
[340661683,1729614579801,-708.832963,0.00013699,2]
[340661684,1729614579828,-708.832963,0.00013699,2]
[340661685,1729614579855,-708.832963,0.00013699,2]
[340661686,1729614579879,-708.832963,0.00013699,2]
[340661687,1729614579906,-708.832963,0.00013699,2]
[340661688,1729614579930,-708.832963,0.00013947,2]
[340661689,1729614579956,-708.832962,0.00013947,2]
[340661690,1729614579981,-500.0,0.00014283,2]
[340661691,1729614580007,-500.0,0.00014283,2]
[340661692,1729614580032,-500.0,0.00014283,2]
[340661693,1729614580060,-500.0,0.00014283,2]
[340661694,1729614580085,-500.0,0.00014283,2]
[340661695,1729614580111,-500.0,0.00014283,2]
[340661696,1729614580137,-500.0,0.00014283,2]
[340661697,1729614580161,-391.94218495,0.00014283,2]
[340661698,1729614580187,-500.0,0.00014283,2]
[340661699,1729614580214,-370.66173285,0.00014283,2]
[340661700,1729614580241,-500.0,0.00014283,2]
[340661701,1729614580267,-500.0,0.00014283,2]
[340661702,1729614580291,-577.73928769,0.00014283,2]
[340661703,1729614580317,-500.0,0.00014283,2]
[340661704,1729614580343,-500.0,0.00014283,2]
[340661705,1729614580370,-500.0,0.00014283,2]
[340661706,1729614580395,-172.68371591,0.00014283,2]
[340661707,1729614580620,-500.0,0.00014283,2]
[340661708,1729614580647,-500.0,0.00014283,2]
[340661709,1729614580673,-500.0,0.00014283,2]
[340661710,1729614580702,-500.0,0.00014283,2]
[340661711,1729614580728,-500.0,0.00014283,2]
[340661712,1729614580753,-500.0,0.00014283,2]
[340661713,1729614580779,-500.0,0.00014283,2]
[340661714,1729614580803,-607.98803754,0.00014283,2]
[340661715,1729614580834,-500.0,0.00014283,2]
[340661716,1729614580861,-500.0,0.00014283,2]
[340661717,1729614580887,-500.0,0.00014283,2]
[340661718,1729614580915,-500.0,0.00014283,2]
[340661719,1729614580941,-500.0,0.00014283,2]
[340661720,1729614580967,-500.0,0.00014283,2]
[340661721,1729614580993,-500.0,0.00014283,2]
[340661722,1729614581017,-500.0,0.00014283,2]
[340661723,1729614581041,-500.0,0.00014283,2]
[340661724,1729614581064,-500.0,0.00014283,2]
[340661725,1729614581088,-500.0,0.00014283,2]
[340661726,1729614581112,-500.0,0.00014283,2]
[340661727,1729614581137,-500.0,0.00014283,2]
[340661728,1729614581160,-500.0,0.00014283,2]
[340661729,1729614581184,-500.0,0.00014283,2]
[340661730,1729614581209,-500.0,0.00014283,2]
[340661731,1729614581233,-500.0,0.00014283,2]
[340661732,1729614581257,-500.0,0.00014283,2]
[340661733,1729614581285,-500.0,0.00014283,2]
[340661734,1729614581311,-500.0,0.00014283,2]
[340661735,1729614581336,-500.0,0.00014283,2]
[340661736,1729614581364,-500.0,0.00014283,2]
[340661737,1729614581397,-500.0,0.00014283,2]
[340661738,1729614581428,-500.0,0.00014283,2]
[340661739,1729614581456,-500.0,0.00014283,2]
[340661740,1729614581482,-500.0,0.00014283,2]
[340661741,1729614581506,-500.0,0.00014283,2]
[340661742,1729614581533,-500.0,0.00014283,2]
[340661743,1729614581558,-290.74849217,0.00014283,2]
[340661744,1729614581584,-500.0,0.00014283,2]
[340661745,1729614581613,-500.0,0.00014283,2]
[340661746,1729614581639,-500.0,0.00014283,2]
[340661747,1729614581666,-500.0,0.00014283,2]
[340661748,1729614581695,-500.0,0.00014283,2]
[340661749,1729614581720,-250.0,0.00014283,2]
[340661750,1729614581743,-500.0,0.00014283,2]
[340661751,1729614581769,-394.07397984,0.00014283,2]
[340661752,1729614581795,-500.0,0.00014283,2]
[340661753,1729614581821,-500.0,0.00014283,2]
[340661754,1729614581846,-500.0,0.00014283,2]
[340661755,1729614581870,-500.0,0.00014283,2]
[340661756,1729614581899,-500.0,0.00014283,2]
[340661757,1729614581926,-500.0,0.00014283,2]
[340661758,1729614581951,-500.0,0.00014283,2]
[340661759,1729614581980,-500.0,0.00014283,2]
[340661760,1729614582007,-500.0,0.00014283,2]
[340661761,1729614582033,-500.0,0.00014283,2]
[340661762,1729614582058,-500.0,0.00014283,2]
[340661763,1729614582082,-500.0,0.00014283,2]
[340661764,1729614582112,-500.0,0.00014283,2]
[340661765,1729614582137,-484.4490953,0.00014283,2]
[340661766,1729614582164,-500.0,0.00014283,2]
[340661767,1729614582189,-500.0,0.00014283,2]
[340661768,1729614582214,-500.0,0.00014283,2]
[340661769,1729614582240,-500.0,0.00014283,2]
[340661770,1729614582265,-500.0,0.00014283,2]
[340661771,1729614582291,-500.0,0.00014283,2]
[340661772,1729614582318,-271.78613281,0.00014283,2]
[340661773,1729614582343,-500.0,0.00014283,2]
[340661774,1729614582371,-500.0,0.00014283,2]
[340661775,1729614582395,-500.0,0.00014283,2]
[340661776,1729614582419,-500.0,0.00014283,2]
[340661777,1729614582446,-500.0,0.00014283,2]
[340661778,1729614582471,-500.0,0.00014283,2]
[340661779,1729614582496,-500.0,0.00014283,2]
[340661780,1729614582523,-500.0,0.00014283,2]
[340661781,1729614582549,-500.0,0.00014283,2]
[340661782,1729614582574,-500.0,0.00014283,2]
[340661783,1729614582602,-201.24617003,0.00014283,2]
[340661784,1729614582627,-500.0,0.00014283,2]
[340661785,1729614582656,-500.0,0.00014283,2]
[340661786,1729614582682,-500.0,0.00014283,2]
[340661787,1729614582709,-500.0,0.00014283,2]
[340661788,1729614582734,-500.0,0.00014283,2]
[340661789,1729614582760,-6544.37906115,0.00014284,2]
[340661790,1729614582784,-150.26446375,0.00014336,2]
[340661791,1729614582808,-667.97222639,0.00014336,2]
[340661792,1729614582834,-151.0,0.00014344,2]
[340661793,1729614582857,-151.0,0.00014347,2]
[340661794,1729614582880,-151.0,0.00014347,2]
[340661795,1729614582905,-151.0,0.00014347,2]
[340661796,1729614582929,-151.0,0.00014347,2]
[340661797,1729614582955,-151.0,0.00014347,2]
[340661798,1729614582979,-151.0,0.00014347,2]
[340661799,1729614583003,-151.0,0.00014347,2]
[340661800,1729614583027,-151.0,0.00014347,2]
[340661801,1729614583051,-151.0,0.00014347,2]
[340661802,1729614583075,-151.0,0.00014347,2]
[340661803,1729614583099,-379.084945,0.00014347,2]
[340661804,1729614583123,-379.084945,0.00014347,2]
[340661805,1729614583147,-343.54970197,0.00014347,2]
[340661806,1729614583170,-1070.0406604,0.00014347,2]
[340661807,1729614583195,-523.79746766,0.00014347,2]
[340661808,1729614583219,-209.97887489,0.00014347,2]
[340661809,1729614583243,-151.0,0.00014374,2]
[340661810,1729614583268,-276.223881,0.00014374,2]
[340661811,1729614583291,-276.223873,0.00014374,2]
[340661812,1729614583316,-33468.600284,0.00014384,2]
[340661813,1729614583340,-151.0,0.00014384,2]
[340661814,1729614583365,-151.0,0.00014384,2]
[340661815,1729614583389,-299.636898,0.00014384,2]
[340661816,1729614583414,-151.0,0.00014384,2]
[340661817,1729614583438,-151.0,0.00014384,2]
[340661818,1729614583461,-151.0,0.00014384,2]
[340661819,1729614583484,-151.0,0.00014384,2]
[340661820,1729614583507,-280.887598,0.00014384,2]
[340661821,1729614583531,-300.386069,0.00014384,2]
[340661822,1729614583555,-300.386069,0.00014384,2]
[340661823,1729614583579,-379.084945,0.00014384,2]
[340661824,1729614583603,-379.084945,0.00014384,2]
[340661825,1729614583628,-151.0,0.00014384,2]
[340661826,1729614583652,-162.462766,0.00014384,2]
[340661827,1729614583675,-162.462766,0.00014384,2]
[340661828,1729614583700,-6344.7626148,0.00014398,2]
[340661829,1729614583724,-150.112233,0.000144,2]
[340661830,1729614583748,-242.0,0.00014597,2]
[340661831,1729614583772,-150.112233,0.000146,2]
[340661832,1729614583795,-1500.0,0.00014647,2]
[340661833,1729614583822,-1500.0,0.00014647,2]
[340661834,1729614583848,-1500.0,0.00014647,2]
[340661835,1729614583874,-420.0,0.00014688,2]
[340661836,1729614584067,-420.0,0.00014739,2]
[340661837,1729614584104,-156.0,0.0001477,2]
[340661838,1729614584130,-150.112233,0.000148,2]
[340661839,1729614584155,-151.0,0.00014815,2]
[340661840,1729614584179,-151.0,0.00014815,2]
[340661841,1729614584205,-155.322974,0.00014815,2]
[340661842,1729614584232,-559.72280061,0.000149,2]
[340661843,1729614584260,-1273.07083472,0.000149,2]
[340661844,1729614584288,-500.0,0.00014973,2]
[340661845,1729614584312,-301.04790476,0.00014973,2]
[340661846,1729614584337,-500.0,0.00014973,2]
[340661847,1729614584363,-429.64301525,0.00014973,2]
[340661848,1729614584388,-187.85752044,0.00014989,2]
[340661849,1729614584412,-502.66506351,0.00014989,2]
[340661850,1729614584437,-500.0,0.00014989,2]
[340661851,1729614584463,-581.12276164,0.00014989,2]
[340661852,1729614584490,-206.65423337,0.00014989,2]
[340661853,1729614584513,-500.0,0.00014989,2]
[340661854,1729614584538,-507.9432717,0.00014989,2]
[340661855,1729614584565,-88608.4987158,0.0001499,2]
[340661856,1729614584593,-11844.0323794,0.0001499,2]
[340661857,1729614584619,-54953.70098694,0.00015,2]
[340661858,1729614584645,-4340.51834859,0.00015,2]
[340661859,1729614584671,-8402.50112382,0.00015,2]
[340661860,1729614584695,-151.0,0.00015,2]
[340661861,1729614584719,-151.0,0.00015,2]
[340661862,1729614584745,-151.0,0.00015,2]
[340661863,1729614584770,-151.0,0.00015,2]
[340661864,1729614584796,-151.0,0.00015,2]
[340661865,1729614584830,-151.0,0.00015,2]
[340661866,1729614584854,-151.0,0.00015,2]
[340661867,1729614584878,-300.386069,0.00015,2]
[340661868,1729614584901,-300.386069,0.00015,2]
[340661869,1729614584925,-379.084945,0.00015,2]
[340661870,1729614584950,-379.084945,0.00015,2]
[340661871,1729614584974,-151.0,0.00015,2]
[340661872,1729614584999,-162.462766,0.00015,2]
[340661873,1729614585023,-162.462766,0.00015,2]
[340661874,1729614585047,-205.0,0.00015022,2]
[340661875,1729614585071,-151.0,0.00015068,2]
[340661876,1729614585095,-151.0,0.00015068,2]
[340661877,1729614585120,-151.0,0.00015068,2]
[340661878,1729614585144,-151.0,0.00015068,2]
[340661879,1729614585168,-151.0,0.00015068,2]
[340661880,1729614585193,-300.386069,0.00015068,2]
[340661881,1729614585218,-300.386069,0.00015068,2]
[340661882,1729614585242,-379.084945,0.00015068,2]
[340661883,1729614585266,-379.084945,0.00015068,2]
[340661884,1729614585293,-151.0,0.00015068,2]
[340661885,1729614585319,-162.462766,0.00015068,2]
[340661886,1729614585342,-162.462766,0.00015068,2]
[340661887,1729614585368,-27390.37516251,0.00015068,2]
[340661929,1729614638831,-500.0,0.00014973,2]
[340661931,1729614638841,-500.0,0.00014973,2]
[340661933,1729614638853,-460.01601045,0.00015005,2]
[340661935,1729614638863,-264.75217087,0.00015067,2]
[340661937,1729614638873,-6078.22512149,0.00015068,2]
[340661939,1729614638882,-150.112233,0.000151,2]
[340661941,1729614638892,-300.0,0.00015104,2]
[340661943,1729614638901,-300.0,0.00015104,2]
[340661945,1729614638912,-460.21579833,0.00015104,2]
[340661948,1729614638924,-500.0,0.00015104,2]
[340661950,1729614638935,-500.0,0.00015104,2]
[340661952,1729614638946,-500.0,0.00015104,2]
[340661954,1729614638956,-422.35986081,0.00015104,2]
[340661957,1729614638966,-500.0,0.00015104,2]
[340661958,1729614638975,-500.0,0.00015104,2]
[340661961,1729614638988,-608.10203404,0.00015104,2]
[340661963,1729614638998,-500.0,0.00015104,2]
[340661965,1729614639008,-997.02274427,0.00015105,2]
[340661967,1729614639017,-44304.2493579,0.00015105,2]
[340661969,1729614639028,-5922.01618971,0.00015105,2]
[340661971,1729614639039,-2000.0,0.00015115,2]
[340661974,1729614639050,-1517.33238246,0.00015115,2]
[340661976,1729614639061,-1944.81889202,0.00015115,2]
[340661978,1729614639070,-500.98839281,0.000152,2]
[340661980,1729614639080,-500.0,0.000152,2]
[340661982,1729614639089,-500.0,0.000152,2]
[340661984,1729614639099,-500.0,0.000152,2]
[340661986,1729614639109,-254.70268798,0.000152,2]
[340661988,1729614639120,-1000.0,0.00015247,2]
[340661990,1729614639131,-150.112233,0.000153,2]
[340661992,1729614639142,-151.0,0.00015334,2]
[340661993,1729614639153,-151.0,0.00015334,2]
[340661994,1729614639163,-984.5578037,0.00015474,2]
[340661995,1729614639172,-1000.0,0.00015474,2]
[340661996,1729614639181,-1000.0,0.00015474,2]
[340661997,1729614639190,-150.112233,0.000155,2]
[340661998,1729614639201,-546.79850904,0.00015634,2]
[340661999,1729614639210,-1500.0,0.00015647,2]
[340662000,1729614639219,-150.112235,0.000158,2]
[340662001,1729614639228,-150.112233,0.000158,2]
[340662002,1729614639239,-500.0,0.00015829,2]
[340662003,1729614639249,-406.78593315,0.00015829,2]
[340662004,1729614639258,-611.46619965,0.00015829,2]
[340662005,1729614639267,-351.86554446,0.00015829,2]
[340662006,1729614639276,-195.80584331,0.00015829,2]
[340662007,1729614639285,-132912.748074,0.0001583,2]
[340662008,1729614639294,-23688.0647588,0.0001583,2]
[340662009,1729614639303,-198.467129,0.0001583,2]
[340662010,1729614639313,-198.467129,0.0001583,2]
[340662011,1729614639322,-246.96997,0.0001583,2]
[340662012,1729614639331,-246.96997,0.0001583,2]
[340662013,1729614639340,-156877.25760058,0.0001584,2]
[340662014,1729614639365,-42155.04155546,0.0001584,2]
[340662015,1729614639374,-198.467129,0.0001584,2]
[340662016,1729614639384,-198.467129,0.0001584,2]
[340662017,1729614639393,-246.96997,0.0001584,2]
[340662018,1729614639404,-246.96997,0.0001584,2]
[340662019,1729614639415,-1500.0,0.00015875,2]
[340662020,1729614639426,-1500.0,0.00015875,2]
[340662021,1729614639436,-1712.42801499,0.0001588,2]
[340662022,1729614639447,-250.0,0.0001589,2]
[340662023,1729614639457,-1777.52903342,0.000159,2]
[340662024,1729614639467,-683.05329934,0.000159,2]
[340662025,1729614639477,-500.14502767,0.00015973,2]
[340662026,1729614639487,-72769.79740133,0.0001599,2]
[340662027,1729614639499,-1452.66675199,0.0001599,2]
[340662028,1729614639511,-1373.8,0.0001599,2]
[340662029,1729614639523,-1389.94631288,0.0001599,2]
[340662030,1729614639534,-604.06,0.00016,2]
[340662031,1729614639544,-487.4129664,0.00016,2]
[340662032,1729614639555,-459.09099918,0.00016,2]
[340662064,1729614651578,-73755.32598248,0.00016,2]
[340662065,1729614651590,-1346.5,0.00016,2]
[340662066,1729614651601,-486.4039661,0.00016,2]
[340662067,1729614651694,-670.34,0.00015485,2]
[340662068,1729614651706,-5674.42261481,0.00015485,2]
[340662069,1729614651715,-45703.455186,0.00016,2]
[340662070,1729614651724,-1012.84180073,0.00016,2]
[340662071,1729614651734,-159775.72313559,0.00016,2]
[340662072,1729614651745,-2550.02,0.00016,2]
[340662073,1729614651759,-136890.81912667,0.00016,2]
[340662074,1729614651770,-548.6768004,0.00016,2]
[340662075,1729614657736,454.7,0.00010959,2]
[340662079,1729614914820,781.736,0.00022,60]
[340662147,1729615831832,-300.0,0.00012813,2]
[340662148,1729615831842,-300.0,0.00012813,2]
[340662149,1729615831851,-24900.0,0.00012814,2]
[340662150,1729615831862,-175.266225,0.00013192,2]
[340662151,1729615831872,-175.266225,0.00013306,2]
[340662152,1729615831881,-175.266225,0.00013421,2]
[340662153,1729615831891,-175.266225,0.00013536,2]
[340662154,1729615831900,-175.266225,0.0001365,2]
[340662155,1729615831910,-1187.80296896,0.00013698,2]
[340662156,1729615831919,-500.0,0.00013698,2]
[340662157,1729615831929,-500.0,0.00013698,2]
[340662159,1729615831939,-500.0,0.00013698,2]
[340662160,1729615831949,-500.0,0.00013698,2]
[340662161,1729615831959,-500.0,0.00013698,2]
[340662162,1729615831970,-500.0,0.00013698,2]
[340662163,1729615831980,-500.0,0.00013698,2]
[340662164,1729615831989,-500.0,0.00013698,2]
[340662165,1729615831999,-500.0,0.00013698,2]
[340662166,1729615832008,-500.0,0.00013698,2]
[340662167,1729615832018,-500.0,0.00013698,2]
[340662168,1729615832032,-500.0,0.00013698,2]
[340662169,1729615832042,-500.0,0.00013698,2]
[340662170,1729615832051,-355.81012873,0.00013698,2]
[340662171,1729615832063,-144.18987127,0.00013698,2]
[340662172,1729615832072,-203.51012873,0.00013698,2]
[340662188,1729615838086,-492.67161117,0.00013598,2]
[340662189,1729615838097,-296.48987127,0.00013698,2]
[340662190,1729615838108,-500.0,0.00013698,2]
[340662191,1729615838119,-500.0,0.00013698,2]
[340662192,1729615838128,-500.0,0.00013698,2]
[340662193,1729615838138,-89.0666021,0.00013698,2]
[340662194,1729615838153,-410.9333979,0.00013698,2]
[340662195,1729615838163,-500.0,0.00013698,2]
[340662196,1729615838173,-500.0,0.00013698,2]
[340662197,1729615838184,-500.0,0.00013698,2]
[340662198,1729615838194,-500.0,0.00013698,2]
[340662199,1729615838203,-500.0,0.00013698,2]
[340662200,1729615838214,-500.0,0.00013698,2]
[340662201,1729615838227,-500.0,0.00013698,2]
[340662202,1729615838237,-457.76317418,0.00013698,2]
[340662203,1729615838247,-500.0,0.00013698,2]
[340662204,1729615838257,-500.0,0.00013698,2]
[340662205,1729615838266,-500.0,0.00013698,2]
[340662206,1729615838275,-500.0,0.00013698,2]
[340662207,1729615838285,-500.0,0.00013698,2]
[340662208,1729615838296,-500.0,0.00013698,2]
[340662209,1729615838305,-500.0,0.00013698,2]
[340662210,1729615838315,-500.0,0.00013698,2]
[340662211,1729615838325,-500.0,0.00013698,2]
[340662212,1729615838335,-500.0,0.00013698,2]
[340662213,1729615838345,-500.0,0.00013698,2]
[340662214,1729615838356,-500.0,0.00013698,2]
[340662215,1729615838365,-500.0,0.00013698,2]
[340662216,1729615838375,-500.0,0.00013698,2]
[340662217,1729615838384,-292.74170241,0.00013698,2]
[340662218,1729615838393,-500.0,0.00013698,2]
[340662219,1729615838404,-500.0,0.00013698,2]
[340662220,1729615838414,-500.0,0.00013698,2]
[340662221,1729615838424,-500.0,0.00013698,2]
[340662222,1729615838434,-500.0,0.00013698,2]
[340662223,1729615838445,-500.0,0.00013698,2]
[340662224,1729615838460,-500.0,0.00013698,2]
[340662225,1729615838470,-500.0,0.00013698,2]
[340662226,1729615838480,-500.0,0.00013698,2]
[340662227,1729615838490,-500.0,0.00013698,2]
[340662228,1729615838506,-500.0,0.00013698,2]
[340662229,1729615838520,-500.0,0.00013698,2]
[340662230,1729615838530,-500.0,0.00013698,2]
[340662231,1729615838539,-500.0,0.00013698,2]
[340662232,1729615838549,-500.0,0.00013698,2]
[340662233,1729615838559,-500.0,0.00013698,2]
[340662234,1729615838568,-500.0,0.00013698,2]
[340662235,1729615838577,-500.0,0.00013698,2]
[340662236,1729615838587,-500.0,0.00013698,2]
[340662237,1729615838597,-500.0,0.00013698,2]
[340662238,1729615838607,-500.0,0.00013698,2]
[340662239,1729615838616,-500.0,0.00013698,2]
[340662240,1729615838626,-500.0,0.00013698,2]
[340662241,1729615838636,-500.0,0.00013698,2]
[340662242,1729615838646,-500.0,0.00013698,2]
[340662243,1729615838656,-500.0,0.00013698,2]
[340662244,1729615838666,-500.0,0.00013698,2]
[340662245,1729615838676,-500.0,0.00013698,2]
[340662246,1729615838686,-500.0,0.00013698,2]
[340662247,1729615838696,-439.7514638,0.00013698,2]
[340662248,1729615838706,-500.0,0.00013698,2]
[340662249,1729615838715,-500.0,0.00013698,2]
[340662250,1729615838725,-500.0,0.00013698,2]
[340662251,1729615838735,-500.0,0.00013698,2]
[340662252,1729615838746,-500.0,0.00013698,2]
[340662253,1729615838755,-347.29183064,0.00013698,2]
[340662254,1729615838765,-500.0,0.00013698,2]
[340662255,1729615838775,-422.35986081,0.00013698,2]
[340662256,1729615838787,-460.21579833,0.00013698,2]
[340662257,1729615838796,-895.840329,0.00013699,2]
[340662258,1729615838808,-3273.022892,0.00013699,2]
[340662259,1729615838818,-500.0,0.000137,2]
[340662260,1729615838832,-500.0,0.000137,2]
[340662261,1729615838843,-500.0,0.000137,2]
[340662262,1729615838852,-500.0,0.000137,2]
[340662263,1729615838862,-500.0,0.000137,2]
[340662264,1729615838872,-591.2668584,0.000137,2]
[340662265,1729615838882,-500.0,0.000137,2]
[340662266,1729615838892,-500.0,0.000137,2]
[340662267,1729615838902,-500.0,0.000137,2]
[340662268,1729615838912,-500.0,0.000137,2]
[340662269,1729615838922,-500.98839281,0.000137,2]
[340662270,1729615838932,-500.0,0.000137,2]
[340662271,1729615838942,-500.0,0.000137,2]
[340662272,1729615838951,-254.70268798,0.000137,2]
[340662273,1729615838962,-175.266225,0.00013765,2]
[340662274,1729615838971,-175.266225,0.00013879,2]
[340662275,1729615838981,-400.0,0.00013973,2]
[340662276,1729615838991,-239.96994139,0.00013974,2]
[340662277,1729615839002,-500.0,0.00013974,2]
[340662278,1729615839012,-984.5578037,0.00013974,2]
[340662279,1729615839022,-1000.0,0.00013974,2]
[340662280,1729615839034,-1000.0,0.00013974,2]